bitfinex/quotes_ETHUSD_20250129
["timestamp","ask_amount","ask_price","bid_price","bid_amount"]
[1738167258561,3.23325,3092.9,3092.6,0.10941567]
[1738167259175,3.23305,3093.1,3092.6,0.10941567]
[1738167259534,0.64490255,3093.2,3092.6,0.10941567]
[1738167259535,3.87780255,3093.2,3092.7,3.23333]
[1738167259677,3.87780255,3093.2,3092.6,3.34283567]
[1738167260037,3.23301,3093.1,3092.7,35.10934427]
[1738167261174,3.2328,3093.3,3092.7,35.10934427]
[1738167261370,3.2328,3093.3,3092.8,3.23329]
[1738167261575,3.2328,3093.3,3092.9,0.1092015]
[1738167261883,6.46566,3093.3,3092.9,0.1092015]
[1738167262112,3.2328,3093.3,3092.9,35.1092015]
[1738167262476,6.46567,3093.3,3092.9,35.1092015]
[1738167262798,3.23291,3093.2,3092.9,35.1092015]
[1738167264099,3.87369212,3093.3,3092.9,35.1092015]
[1738167264279,3.23291,3093.2,3092.9,35.1092015]
[1738167265280,6.4659,3093.2,3092.9,35.1092015]
[1738167265472,3.23291,3093.2,3092.9,35.1092015]
[1738167265678,3.233,3093.1,3092.9,0.1092015]
[1738167265879,3.2331,3093.0,3092.9,0.1092015]
[1738167266073,3.2331,3093.0,3092.6,0.375]
[1738167266312,3.2331,3093.0,3092.9,0.1091241]
[1738167266516,3.2331,3093.0,3092.6,0.375]
[1738167266742,3.2331,3093.0,3092.9,0.1091241]
[1738167266908,3.233,3093.1,3092.6,0.375]
[1738167267109,3.2331,3093.0,3092.9,0.1091241]
[1738167267312,3.2331,3093.0,3092.9,0.10915893]
[1738167267716,3.2331,3093.0,3092.7,35.0]
[1738167267910,3.2331,3093.0,3092.9,0.10915893]
[1738167268125,6.46607,3093.1,3092.9,0.10915893]
[1738167268313,3.2331,3093.0,3092.9,0.10915893]
[1738167268519,3.2331,3093.0,3092.7,35.0]
[1738167268819,3.2331,3093.0,3092.8,0.10923031]
[1738167269226,3.2331,3093.0,3092.7,35.0]
[1738167269431,3.2331,3093.0,3092.9,0.10916667]
[1738167269641,3.2331,3093.0,3092.8,0.10923805]
[1738167269838,3.2331,3093.0,3092.9,35.10916667]
[1738167270406,3.2331,3093.0,3092.9,0.10916667]
[1738167270608,3.2331,3093.0,3092.6,0.375]
[1738167270914,3.2331,3093.0,3092.7,35.10930944]
[1738167271319,6.46629,3093.0,3092.7,35.10930944]
[1738167271641,3.23326,3092.9,3092.7,35.10930944]
[1738167272222,3.2331,3093.0,3092.7,35.10930944]
[1738167272418,6.46629,3093.0,3092.7,35.10930944]
[1738167272622,3.23321,3092.9,3092.7,0.10930944]
[1738167273006,3.23321,3092.9,3092.5,0.367]
[1738167273207,3.23321,3092.9,3092.6,35.10934987]
[1738167274030,3.23321,3092.9,3092.6,0.10934987]
[1738167274233,0.68701514,3092.9,3092.6,0.10934987]
[1738167274435,3.23342,3092.7,3092.6,0.10934987]
[1738167274636,3.23359,3092.6,3092.4,35.366]
[1738167274832,3.23353,3092.6,3092.4,35.0]
[1738167275051,3.22980797,3092.6,3092.4,35.0]
[1738167275357,3.233,3093.1,3092.4,35.0]
[1738167275358,3.2334,3092.8,3092.4,35.0]
[1738167275533,3.23318,3093.0,3092.4,38.23365]
[1738167275735,3.23318,3093.0,3092.5,3.99038]
[1738167276348,3.88885513,3093.0,3092.5,0.7568]
[1738167277254,3.88885513,3093.0,3092.4,35.0]
[1738167277553,3.23333,3092.8,3092.4,35.0]
[1738167279020,3.23347,3092.7,3092.4,35.0]
[1738167279217,3.23333,3092.8,3092.4,35.0]
[1738167279558,6.46673,3092.8,3092.4,35.0]
[1738167279759,3.23333,3092.8,3092.4,35.0]
[1738167279953,3.23346,3092.7,3092.4,35.0]
[1738167281025,3.23321,3092.9,3092.4,38.23372]
[1738167282377,3.23332,3092.8,3092.4,38.23372]
[1738167284534,3.23332,3092.8,3092.4,35.0]
[1738167285277,3.23332,3092.8,3092.4,38.23371]
[1738167285478,3.88879513,3093.0,3092.5,0.1094832]
[1738167285679,3.23324,3092.9,3092.5,0.1094832]
[1738167286103,3.23324,3092.9,3092.6,35.0]
[1738167286304,3.88879513,3093.0,3092.6,35.0]
[1738167286305,3.23332,3092.8,3092.6,35.0]
[1738167286578,3.23332,3092.8,3092.7,0.10939844]
[1738167287779,3.88879513,3093.0,3092.7,0.10939844]
[1738167288178,3.88879513,3093.0,3092.4,3.23372]
[1738167288425,3.88879513,3093.0,3092.5,35.1095064]
[1738167288426,3.23333,3092.8,3092.5,35.1095064]
[1738167288629,6.46674,3092.8,3092.5,35.1095064]
[1738167288933,3.23352,3092.6,3092.5,35.1095064]
[1738167290507,3.880214,3092.6,3092.5,0.1095064]
[1738167290817,4.72680214,3092.6,3091.7,0.8203]
[1738167291116,3.23373,3092.4,3091.9,3.2342]
[1738167291491,3.23373,3092.4,3092.0,0.10986345]
[1738167291681,3.23389,3092.3,3092.0,0.10986345]
[1738167292015,3.23383,3092.3,3092.1,35.0]
[1738167292185,3.23383,3092.3,3092.2,0.1096751]
[1738167292778,3.23383,3092.3,3091.7,4.05466]
[1738167292983,3.23383,3092.3,3091.8,0.55097231]
[1738167293182,3.23383,3092.3,3091.8,3.78530231]
[1738167293709,3.23383,3092.3,3091.8,0.55097231]
[1738167294283,3.23397,3092.2,3091.8,0.55097231]
[1738167294480,3.23397,3092.2,3091.8,0.11000631]
[1738167294897,3.23397,3092.2,3091.7,4.05466]
[1738167295222,3.23397,3092.2,3091.8,0.11000631]
[1738167295423,3.23397,3092.2,3091.7,4.05466]
[1738167295621,3.23417,3092.0,3091.8,0.11000631]
[1738167295928,3.23437,3091.8,3091.4,1.1728]
[1738167297687,6.46844,3092.0,3091.4,4.40756]
[1738167297932,3.23421,3092.0,3091.4,4.40756]
[1738167298393,0.65244326,3092.0,3091.7,3.23444]
[1738167298608,3.23412,3092.1,3091.5,3.23467]
[1738167298823,3.23421,3092.0,3091.4,4.40757]
[1738167299449,4.03107,3092.5,3091.4,1.1728]
[1738167299450,0.7974,3092.5,3091.4,1.1728]
[1738167299645,3.23442,3091.8,3091.4,1.1728]
[1738167300143,3.23442,3091.8,3091.4,0.353]
[1738167300350,3.23442,3091.8,3091.3,3.6727]
[1738167300558,3.23457,3091.6,3091.5,0.11077809]
[1738167300853,3.99817,3091.5,3091.3,2.561]
[1738167301052,3.23519,3091.1,3090.8,0.354]
[1738167301567,3.23524,3091.0,3090.7,0.7846]
[1738167301859,3.23404,3092.2,3091.4,0.8162]
[1738167302163,3.23408,3092.1,3091.5,3.639691]
[1738167302704,3.99252,3092.3,3091.6,3.23455]
[1738167303058,3.2341,3092.1,3091.5,3.639761]
[1738167303412,3.2342,3092.0,3091.5,0.405101]
[1738167303600,3.87996387,3092.2,3091.5,3.639771]
[1738167303804,3.87996387,3092.2,3091.6,3.61753842]
[1738167304061,3.23406,3092.1,3091.6,0.38299842]
[1738167304556,3.23425,3091.9,3091.6,0.38299842]
[1738167304752,3.23425,3091.9,3091.4,4.05095]
[1738167304918,3.23425,3091.9,3091.5,0.354]
[1738167304919,3.23446,3091.8,3091.5,0.354]
[1738167305121,3.23425,3091.9,3091.5,0.354]
[1738167305122,3.23446,3091.7,3091.5,0.354]
[1738167306224,6.46902,3091.7,3091.5,0.354]
[1738167306557,1.437902,3091.7,3091.1,1.1668]
[1738167306757,3.23496,3091.3,3090.8,0.8128]
[1738167307307,6.46992,3091.3,3090.8,0.8128]
[1738167307807,3.2352,3091.0,3090.7,0.354]
[1738167308245,3.23525,3091.0,3090.5,1.1074]
[1738167308554,0.6466686,3091.2,3090.7,3.23546]
[1738167308719,0.6466686,3091.2,3090.6,3.2356]
[1738167309050,3.23547,3090.8,3090.5,0.354]
[1738167309932,3.23503,3091.2,3090.6,3.23555]
[1738167310106,6.46969,3091.4,3090.8,3.23538]
[1738167310305,0.7793,3091.6,3091.0,3.23512]
[1738167310306,4.01391,3091.6,3091.0,3.23512]
[1738167310510,3.88995674,3091.4,3090.8,3.23533]
[1738167311404,3.88995674,3091.4,3090.7,1.121755]
[1738167311605,3.23511,3091.1,3090.7,0.7628]
[1738167311917,3.23498,3091.2,3090.5,3.58972]
[1738167312263,1.44394674,3091.4,3090.5,0.354]
[1738167312424,3.23557,3090.7,3090.5,0.354]
[1738167312762,3.23572,3090.5,3090.0,0.8161]
[1738167312941,3.23572,3090.5,3090.0,1.256735]
[1738167313145,3.23593,3090.3,3090.0,1.1701]
[1738167313469,3.23619,3090.1,3089.9,0.354]
[1738167314261,6.47195,3090.3,3089.9,0.354]
[1738167314609,4.00104,3090.2,3089.9,0.354]
[1738167315008,4.00104,3090.2,3089.6,2.561]
[1738167315261,3.23651,3089.8,3089.6,2.561]
[1738167315415,6.47306,3089.8,3089.7,0.11243668]
[1738167316108,7.29256,3089.8,3089.7,0.11243668]
[1738167316636,3.23656,3089.7,3089.6,2.561]
[1738167317760,0.8007,3090.1,3089.6,2.561]
[1738167317911,3.23652,3089.8,3089.6,2.561]
[1738167318248,3.2363,3090.0,3089.6,2.561]
[1738167318546,3.23636,3089.9,3089.6,2.561]
[1738167319115,4.0369,3090.1,3089.6,2.561]
[1738167319315,3.23609,3090.2,3089.7,3.23652]
[1738167319914,6.47221,3090.2,3089.6,5.79766]
[1738167320314,3.23615,3090.1,3089.6,5.79766]
[1738167320636,3.23609,3090.2,3089.6,5.79766]
[1738167321152,0.65682942,3090.3,3089.6,3.70309942]
[1738167321449,3.23543,3090.8,3090.2,3.23603]
[1738167321683,3.23543,3090.8,3090.3,3.23586]
[1738167321952,3.23543,3090.8,3090.2,3.23596]
[1738167321953,0.64581903,3090.7,3090.2,3.23596]
[1738167322324,3.88133903,3090.7,3090.0,7.29155]
[1738167322630,3.88133903,3090.7,3090.1,3.23612]
[1738167323339,0.64581903,3090.7,3090.2,3.23597]
[1738167323654,3.2353,3090.9,3090.4,3.23581]
[1738167323957,3.23548,3090.8,3090.2,3.23598]
[1738167324311,3.27586814,3090.8,3090.2,3.23598]
[1738167324524,0.04038814,3090.8,3090.0,0.8192]
[1738167325470,3.23564,3090.6,3090.0,0.8192]
[1738167325618,0.04038814,3090.5,3089.8,0.354]
[1738167325819,0.7816,3090.6,3089.8,0.354]
[1738167326159,0.7816,3090.6,3090.0,3.23616]
[1738167326160,3.23577,3090.5,3090.0,3.23616]
[1738167326358,3.23577,3090.5,3089.9,3.23634]
[1738167326893,3.23594,3090.3,3089.8,0.354]
[1738167327211,4.01724,3090.6,3089.9,3.23634]
[1738167327490,0.64891463,3090.7,3090.2,0.822]
[1738167327790,0.64891463,3090.7,3090.3,3.23591]
[1738167328177,0.64891463,3090.7,3090.2,0.822]
[1738167328382,3.23568,3090.6,3090.2,0.822]
[1738167328580,3.23592,3090.4,3089.9,0.7712]
[1738167328785,3.23595,3090.3,3089.9,0.7712]
[1738167329090,3.23595,3090.3,3090.0,35.0]
[1738167329462,3.88448463,3090.7,3090.0,35.0]
[1738167329694,3.23593,3090.3,3090.0,35.0]
[1738167330396,3.23652,3089.8,3089.6,1.148]
[1738167330596,0.7974,3090.2,3089.1,0.8059]
[1738167330597,3.23676,3089.6,3089.1,0.8059]
[1738167330782,3.23687,3089.4,3089.1,0.8059]
[1738167331185,3.23676,3089.6,3089.1,0.8059]
[1738167332086,3.23682,3089.5,3089.1,0.8059]
[1738167332414,3.23714,3089.2,3088.7,2.563]
[1738167332586,3.23736,3089.0,3088.8,0.354]
[1738167332785,3.23714,3089.2,3088.8,0.354]
[1738167332984,3.23723,3089.1,3088.8,0.354]
[1738167333499,3.23714,3089.2,3088.7,6.15459]
[1738167334121,3.23714,3089.2,3088.7,3.59159]
[1738167334364,3.23713,3089.2,3088.7,0.354]
[1738167334494,3.23736,3089.0,3088.7,0.354]
[1738167334697,3.2372,3089.1,3088.7,0.354]
[1738167335530,4.04583,3089.2,3088.7,0.354]
[1738167335832,3.23722,3089.1,3088.7,0.354]
[1738167336024,3.2373,3089.0,3088.7,0.354]
[1738167336335,3.2373,3089.0,3088.6,0.354]
[1738167337038,3.23763,3088.7,3088.2,3.98967]
[1738167337248,3.23763,3088.7,3088.5,0.354]
[1738167337426,3.23738,3089.0,3088.5,3.59181]
[1738167338331,3.2375,3088.8,3088.5,0.354]
[1738167338526,3.23762,3088.7,3088.5,0.354]
[1738167338840,3.23771,3088.6,3088.5,0.354]
[1738167339005,3.2375,3088.8,3088.5,0.354]
[1738167339204,3.23771,3088.6,3088.5,0.354]
[1738167339419,6.47513,3088.8,3088.2,0.7516]
[1738167339639,3.23753,3088.8,3088.2,0.7516]
[1738167340047,3.23789,3088.5,3088.2,0.7516]
[1738167340348,3.23777,3088.6,3087.9,35.0]
[1738167340349,4.06527,3088.6,3088.1,0.354]
[1738167341716,0.8275,3088.6,3088.1,0.354]
[1738167341942,3.23783,3088.5,3088.1,0.354]
[1738167342971,3.23771,3088.6,3088.1,0.354]
[1738167343447,1.42345699,3088.9,3088.2,3.23813]
[1738167343647,0.64275699,3088.9,3088.3,35.03237844]
[1738167343854,0.64275699,3088.9,3088.3,35.0]
[1738167344042,3.88017699,3088.9,3088.4,0.7981]
[1738167344239,3.88017699,3088.9,3088.3,38.23796]
[1738167344240,0.64275699,3088.9,3088.3,35.0]
[1738167344669,3.23784,3088.5,3088.3,35.0]
[1738167344839,0.8193,3088.8,3087.8,0.8055]
[1738167344840,3.23798,3088.4,3087.8,0.8055]
[1738167345052,3.23812,3088.3,3087.8,0.8055]
[1738167345247,3.23798,3088.4,3087.9,0.354]
[1738167345436,4.05683,3088.8,3087.9,0.1159774]
[1738167345437,3.23775,3088.6,3087.9,0.1159774]
[1738167345635,3.23775,3088.6,3088.1,3.23816]
[1738167345838,3.23775,3088.6,3088.1,6.83032]
[1738167346070,3.23752,3088.8,3088.4,0.802]
[1738167346373,0.64275699,3088.9,3088.4,0.802]
[1738167346562,3.23761,3088.7,3088.5,0.11559438]
[1738167346869,3.23767,3088.7,3088.4,0.802]
[1738167347069,3.23777,3088.6,3088.5,0.11559438]
[1738167347274,3.23803,3088.3,3088.1,1.1289]
[1738167347441,3.23803,3088.3,3088.2,0.11580915]
[1738167348693,3.23793,3088.4,3088.2,0.11580915]
[1738167349036,3.23802,3088.3,3088.2,0.11580915]
[1738167350599,3.23818,3088.2,3087.9,1.1289]
[1738167350789,3.23805,3088.3,3087.9,1.1289]
[1738167351456,3.23793,3088.4,3087.9,1.1289]
[1738167351457,3.23779,3088.6,3088.0,3.23832]
[1738167351656,0.64275699,3088.9,3088.1,0.7556]
[1738167351863,0.64275699,3088.9,3088.6,3.23771]
[1738167352195,0.64275699,3088.9,3088.4,3.23782]
[1738167352385,0.64275699,3088.9,3088.5,0.399342]
[1738167352769,0.64275699,3088.9,3088.4,3.23782]
[1738167352975,3.2375,3088.8,3088.3,3.99362]
[1738167353183,0.64275699,3088.9,3088.4,3.23786]
[1738167353560,0.64275699,3088.9,3088.3,0.7556]
[1738167353765,0.64275699,3088.9,3088.4,3.23792]
[1738167353995,0.64275699,3088.9,3088.5,3.637062]
[1738167354761,0.64275699,3088.9,3088.5,0.399352]
[1738167355176,0.64275699,3088.9,3088.5,3.637152]
[1738167355489,3.88015699,3088.9,3088.5,0.399352]
[1738167355673,3.88015699,3088.9,3088.4,3.23788]
[1738167356197,3.23754,3088.8,3088.3,0.7556]
[1738167356496,3.23792,3088.4,3088.3,0.354]
[1738167357528,3.23819,3088.2,3087.8,0.354]
[1738167357705,3.23826,3088.1,3087.8,0.354]
[1738167357911,3.23826,3088.1,3087.9,0.11600068]
[1738167358622,3.23819,3088.2,3087.9,0.11600068]
[1738167359200,6.47641,3088.2,3087.9,0.11600068]
[1738167359401,3.23819,3088.2,3087.9,0.11600068]
[1738167359922,6.4764,3088.2,3087.9,0.11600068]
[1738167360125,3.23819,3088.2,3087.9,0.11600068]
[1738167360442,3.23819,3088.2,3087.7,39.38595]
[1738167360656,3.23819,3088.2,3088.0,0.11592907]
[1738167360854,3.23819,3088.2,3087.7,36.1473]
[1738167361015,3.23819,3088.2,3088.1,0.11585747]
[1738167361215,3.23819,3088.2,3087.7,36.1473]
[1738167361423,3.23819,3088.2,3088.1,0.11585747]
[1738167361624,3.23819,3088.2,3087.7,36.1473]
[1738167361852,3.23819,3088.2,3088.1,0.11585747]
[1738167362026,0.79303506,3088.2,3087.7,35.7933]
[1738167362357,3.23813,3088.2,3088.1,0.11585747]
[1738167362557,3.23843,3088.0,3087.7,35.7933]
[1738167363048,3.23843,3088.0,3087.7,0.7933]
[1738167364029,3.23845,3087.9,3087.7,0.7933]
[1738167364953,3.23845,3087.9,3087.6,35.354]
[1738167365257,3.23862,3087.8,3087.6,35.354]
[1738167365824,3.23882,3087.6,3087.0,3.23933]
[1738167366023,3.23903,3087.4,3087.1,0.354]
[1738167366221,3.23903,3087.4,3086.8,3.59353]
[1738167366523,3.23913,3087.3,3086.9,35.0]
[1738167367655,3.23927,3087.2,3086.9,35.0]
[1738167368546,3.23913,3087.3,3086.9,35.0]
[1738167369727,3.88875293,3087.5,3086.9,35.0]
[1738167369728,3.23938,3087.1,3086.9,35.0]
[1738167369923,3.23939,3087.0,3086.9,35.0]
[1738167370224,3.23954,3086.9,3086.3,6.15907]
[1738167370422,4.03288,3087.1,3086.3,6.15907]
[1738167370423,4.03288,3087.1,3086.6,3.2398]
[1738167370653,4.03288,3087.1,3086.7,35.0]
[1738167372621,3.23949,3086.9,3086.7,35.0]
[1738167372822,3.23949,3086.9,3085.6,0.354]
[1738167372823,3.24044,3086.0,3085.6,0.354]
[1738167373057,3.24073,3085.8,3085.2,0.7859]
[1738167373265,3.24093,3085.6,3085.3,35.0]
[1738167373448,3.24107,3085.4,3085.3,35.0]
[1738167373649,0.7742,3085.6,3084.8,0.354]
[1738167373855,6.48206,3085.5,3084.9,3.24157]
[1738167374040,3.24102,3085.5,3085.0,35.0]
[1738167374243,3.24134,3085.2,3084.8,0.354]
[1738167374622,3.24111,3085.4,3084.8,0.354]
[1738167374822,3.2412,3085.3,3084.8,38.59564]
[1738167375264,1.41577435,3085.6,3084.8,35.0]
[1738167375470,4.06205,3086.0,3085.2,0.8049]
[1738167375688,0.7554,3086.3,3085.3,3.03240754]
[1738167375886,0.7554,3086.7,3086.1,3.24023]
[1738167376092,0.16859172,3087.1,3086.2,35.0]
[1738167376288,0.16859172,3087.1,3086.6,3.23973]
[1738167376467,1.45977295,3087.2,3086.8,3.23959]
[1738167376662,0.64047295,3087.2,3086.9,3.23948]
[1738167376980,3.2388,3087.6,3087.0,3.23936]
[1738167377155,3.23887,3087.5,3087.0,35.0]
[1738167377356,3.23887,3087.5,3087.1,0.1146081]
[1738167377553,1.46675771,3087.8,3087.2,3.2391]
[1738167377780,0.1,3089.1,3087.1,0.1146081]
[1738167377781,0.8058,3088.1,3087.5,3.23883]
[1738167377948,4.04366,3088.5,3087.8,3.23848]
[1738167378152,3.23802,3088.3,3087.7,3.23859]
[1738167378391,3.23802,3088.3,3087.9,0.11385636]
[1738167378661,0.04038814,3088.2,3088.0,0.11378475]
[1738167378857,0.04038814,3088.2,3087.6,35.8022]
[1738167378858,3.23823,3088.1,3087.6,35.0]
[1738167379653,3.23805,3088.3,3087.7,3.23865]
[1738167379853,4.04361,3088.5,3087.8,3.23846]
[1738167380177,3.23781,3088.5,3087.9,3.23837]
[1738167380695,3.23761,3088.7,3088.1,3.23817]
[1738167380991,3.23744,3088.9,3088.1,1.18678122]
[1738167381191,3.23744,3088.9,3088.1,1.1544]
[1738167381591,3.23744,3088.9,3088.3,3.23799]
[1738167381799,1.43557757,3089.2,3088.1,1.1544]
[1738167381959,3.23666,3089.6,3088.9,3.23737]
[1738167382151,0.725331,3089.6,3088.9,3.23737]
[1738167382351,3.23687,3089.4,3088.9,35.0]
[1738167382618,3.23746,3088.9,3088.2,3.5921]
[1738167382915,3.23746,3088.9,3088.2,3.59211]
[1738167383053,0.04038814,3088.8,3088.2,38.59211]
[1738167383250,3.23771,3088.6,3088.2,0.354]
[1738167383491,3.561651,3088.5,3088.2,0.354]
[1738167383694,3.23766,3088.7,3088.2,0.354]
[1738167384090,3.23772,3088.6,3088.2,0.354]
[1738167384891,3.23783,3088.5,3088.2,0.354]
[1738167385991,3.23784,3088.5,3088.2,0.354]
[1738167386191,3.23802,3088.3,3088.2,0.354]
[1738167386356,3.23782,3088.5,3088.2,0.354]
[1738167386563,3.561702,3088.4,3088.2,0.354]
[1738167386972,3.23774,3088.6,3088.2,0.354]
[1738167387295,3.23793,3088.4,3088.2,0.354]
[1738167387674,3.23788,3088.5,3088.2,0.354]
[1738167388562,3.23821,3088.2,3087.8,0.354]
[1738167388761,3.23842,3088.0,3087.3,3.593]
[1738167389117,4.362662,3088.0,3087.4,0.10874367]
[1738167389405,4.362662,3088.0,3087.4,3.34770367]
[1738167389561,3.23866,3087.7,3087.4,0.10874367]
[1738167389762,3.23876,3087.7,3087.4,0.10874367]
[1738167390101,3.27914814,3087.6,3087.5,0.10873782]
[1738167390262,3.23876,3087.7,3087.1,3.59724]
[1738167390463,3.27919814,3087.6,3087.5,0.10873782]
[1738167390789,3.93099395,3087.6,3087.1,0.358]
[1738167390964,3.27919814,3087.6,3087.5,0.10873782]
[1738167391302,3.23876,3087.7,3087.5,0.10873782]
[1738167391508,0.04038814,3087.6,3087.1,3.59727]
[1738167391690,3.23906,3087.4,3086.7,38.23967]
[1738167391997,1.124242,3088.0,3086.7,38.59567]
[1738167392197,3.23919,3087.2,3086.7,38.59567]
[1738167392408,3.23892,3087.5,3086.9,3.23948]
[1738167392696,3.23898,3087.4,3086.9,3.23948]
[1738167393267,3.23898,3087.4,3086.7,38.59565]
[1738167393464,3.23933,3087.1,3086.7,35.356]
[1738167393909,3.23933,3087.1,3086.7,35.0]
[1738167394479,3.23933,3087.1,3086.5,3.23984]
[1738167395008,3.23933,3087.1,3086.6,35.0]
[1738167395183,3.23933,3087.1,3086.6,38.2398]
[1738167395578,0.64853691,3087.3,3086.7,6.47924]
[1738167395796,0.64853691,3087.3,3086.7,3.23962]
[1738167395797,3.88767691,3087.3,3086.7,3.23962]
[1738167395997,3.88767691,3087.3,3086.6,0.354]
[1738167396204,3.23929,3087.1,3086.7,35.0]
[1738167397085,3.88768691,3087.3,3086.7,35.0]
[1738167397670,3.23921,3087.2,3086.7,35.0]
[1738167398478,0.64853691,3087.3,3086.7,35.0]
[1738167398682,4.06181,3087.5,3086.9,3.23946]
[1738167398889,3.23908,3087.3,3086.7,3.23962]
[1738167399108,3.23919,3087.2,3086.7,3.23962]
[1738167399311,3.23949,3086.9,3086.8,35.0]
[1738167399608,3.23935,3087.1,3086.8,35.0]
[1738167399809,3.23935,3087.1,3086.6,0.354]
[1738167399983,3.969209,3087.3,3086.5,3.5939]
[1738167400312,3.2394,3087.0,3086.6,35.0]
[1738167400671,3.23964,3086.8,3086.3,4.02777]
[1738167400876,0.8201,3086.6,3085.8,2.92]
[1738167401078,3.24045,3086.0,3085.8,2.92]
[1738167401348,3.24081,3085.7,3085.2,0.354]
[1738167401471,3.24081,3085.7,3084.8,3.24164]
[1738167401472,3.2411,3085.4,3084.9,0.354]
[1738167401811,3.24091,3085.6,3085.0,35.0]
[1738167402030,3.24113,3085.4,3085.0,35.0]
[1738167402379,3.24108,3085.4,3085.0,35.0]
[1738167404503,6.48223,3085.4,3085.0,35.0]
[1738167404706,3.24108,3085.4,3085.0,35.0]
[1738167404906,0.8021,3085.7,3085.0,35.35045542]
[1738167405093,4.04288,3085.7,3085.1,3.24137]
[1738167405302,3.24078,3085.7,3085.1,3.24137]
[1738167405613,3.24078,3085.7,3085.2,0.11267913]
[1738167406185,3.24071,3085.8,3085.2,3.35392913]
[1738167406705,3.24079,3085.7,3085.2,3.35392913]
[1738167407386,3.87333469,3085.8,3085.2,0.11267913]
[1738167407582,3.87333469,3085.8,3085.2,3.35386913]
[1738167407789,3.24079,3085.7,3085.2,3.24119]
[1738167408027,3.24079,3085.7,3085.3,0.1126074]
[1738167408388,3.24079,3085.7,3085.2,3.24119]
[1738167408601,3.24079,3085.7,3085.4,0.11253566]
[1738167408804,3.24101,3085.5,3085.3,0.1126074]
[1738167409139,3.24125,3085.3,3084.8,0.7808]
[1738167409481,3.24157,3085.0,3084.4,0.9299233]
[1738167409586,3.24135,3085.2,3084.5,3.59591]
[1738167409788,3.24123,3085.3,3084.6,3.2418]
[1738167410189,3.24142,3085.1,3084.6,3.2418]
[1738167410388,3.28180814,3085.1,3084.5,0.354]
[1738167410623,3.24167,3084.9,3084.5,0.354]
[1738167410994,3.24103,3085.5,3084.9,3.24158]
[1738167411188,3.24075,3085.8,3085.2,3.24126]
[1738167411390,4.04534,3086.1,3085.2,1.103226]
[1738167411602,4.04534,3086.1,3085.5,3.24094]
[1738167411603,0.65895091,3085.9,3085.5,3.24094]
[1738167411828,0.65895091,3085.9,3085.4,3.24104]
[1738167411997,3.93990905,3085.9,3085.2,4.02029]
[1738167412722,3.24057,3085.9,3085.3,3.24116]
[1738167413090,3.2407,3085.8,3085.2,4.02029]
[1738167413288,3.24065,3085.8,3085.2,4.02029]
[1738167413487,3.24065,3085.8,3085.2,7.26148]
[1738167413792,3.24065,3085.8,3085.3,3.24116]
[1738167414691,3.24065,3085.8,3085.2,0.7791]
[1738167414943,3.24091,3085.6,3085.2,0.7791]
[1738167415428,4.38649891,3085.8,3085.2,0.7791]
[1738167415593,3.24092,3085.6,3085.2,0.7791]
[1738167415794,3.24092,3085.6,3084.9,3.994]
[1738167415795,3.28141814,3085.5,3084.9,3.994]
[1738167416014,3.24107,3085.4,3085.0,0.354]
[1738167416488,3.24092,3085.6,3085.0,3.59547]
[1738167416907,3.24097,3085.5,3085.0,0.354]
[1738167417335,3.24062,3085.9,3085.0,0.788799]
[1738167417558,3.24066,3085.8,3085.0,3.59543]
[1738167417859,3.24087,3085.6,3085.0,3.59539]
[1738167418060,3.24123,3085.3,3085.0,0.354]
[1738167418660,3.24165,3084.9,3084.6,0.75]
[1738167418865,0.0075,3084.7,3084.4,0.1594233]
[1738167419164,7.01191,3084.5,3084.4,0.1594233]
[1738167419326,7.01941,3084.5,3084.4,3.3e-06]
[1738167420426,7.01191,3084.5,3084.4,3.3e-06]
[1738167420625,8.029791,3084.5,3084.4,3.3e-06]
[1738167421756,5.029791,3084.5,3084.4,3.3e-06]
[1738167422367,5.08517914,3084.5,3084.4,3.3e-06]
[1738167422553,8.63517914,3084.5,3084.4,3.3e-06]
[1738167422734,8.594791,3084.5,3084.4,3.3e-06]
[1738167423870,8.044791,3084.5,3084.4,3.3e-06]
[1738167424163,8.694791,3084.5,3084.4,3.3e-06]
[1738167424467,3.2437,3082.9,3082.7,0.354]
[1738167424681,0.7671,3083.3,3082.8,0.11496457]
[1738167424682,3.24333,3083.3,3082.8,0.11496457]
[1738167424888,3.24312,3083.5,3082.9,0.354]
[1738167425184,3.0,3084.4,3083.0,0.11482088]
[1738167425185,6.48667,3083.3,3083.0,0.11482088]
[1738167425372,3.24329,3083.3,3083.0,0.11482088]
[1738167425544,3.24341,3083.2,3082.5,4.05054]
[1738167425748,3.2432,3083.4,3082.9,3.24368]
[1738167425945,3.2432,3083.4,3083.0,0.7685]
[1738167426183,3.2432,3083.4,3083.1,0.11582747]
[1738167426679,3.24279,3083.8,3083.1,0.46982747]
[1738167426881,3.24289,3083.7,3083.1,0.46982747]
[1738167427080,3.24312,3083.5,3083.1,0.46982747]
[1738167427482,3.891428,3083.7,3083.1,0.46982747]
[1738167427483,3.891428,3083.7,3083.1,3.71326747]
[1738167427654,3.24265,3083.9,3083.3,3.24327]
[1738167427987,3.24287,3083.7,3083.4,0.11561198]
[1738167428292,3.24265,3083.9,3083.3,3.24318]
[1738167428479,3.24265,3083.9,3083.4,0.11557317]
[1738167428785,3.2422,3084.4,3083.7,0.7616]
[1738167428964,3.24226,3084.3,3083.7,4.404905]
[1738167429160,3.24226,3084.3,3083.8,0.46925099]
[1738167429553,3.24234,3084.2,3083.8,0.46925099]
[1738167430583,3.24234,3084.2,3083.8,0.11525099]